bitfinex/quotes_ETHUSD_20251010
["timestamp","ask_amount","ask_price","bid_price","bid_amount"]
[1760123771444,1.92,4036.8,4036.7,4.3236]
[1760123772187,4.39720967,4036.8,4036.7,4.3236]
[1760123772388,1.92,4036.8,4036.7,4.3236]
[1760123772596,1.92,4036.8,4036.7,4.34837271]
[1760123772886,2.47638731,4038.2,4036.8,0.6336]
[1760123773047,2.47646703,4038.1,4036.9,0.02477148]
[1760123773250,1.32899984,4039.1,4037.1,0.6336]
[1760123773454,2.47644253,4038.1,4037.1,0.6336]
[1760123773655,2.47644253,4038.1,4037.3,0.6336]
[1760123773859,3.97299984,4039.1,4036.8,0.6336]
[1760123773860,2.47684153,4037.4,4036.8,0.6336]
[1760123774158,2.47598296,4038.8,4036.8,0.6336]
[1760123774159,1.92,4037.9,4036.8,0.6336]
[1760123774395,2.4771483,4036.9,4036.8,1.23]
[1760123774607,4.4961483,4036.9,4036.8,1.23]
[1760123774812,4.3971483,4036.9,4036.8,1.23]
[1760123775510,1.92,4036.9,4036.8,1.23]
[1760123775832,2.47745515,4036.4,4036.3,2.46]
[1760123776008,2.47757791,4036.2,4034.0,0.4528]
[1760123776196,4.39757791,4036.2,4034.0,0.4528]
[1760123776403,4.49657791,4036.2,4035.6,1.846]
[1760123776722,4.49657791,4036.2,4034.1,0.2199]
[1760123776923,4.49657791,4036.2,4035.7,3.898]
[1760123776924,4.39757791,4036.2,4035.7,3.898]
[1760123777095,4.39757791,4036.2,4036.1,1.232]
[1760123777298,2.47756773,4036.3,4036.1,1.25677639]
[1760123777499,2.47756773,4036.3,4036.1,1.232]
[1760123777722,0.099,4037.5,4036.2,0.6336]
[1760123778041,0.099,4037.5,4036.4,0.6336]
[1760123778548,4.54094074,4038.9,4036.4,0.6336]
[1760123778549,2.47592166,4038.9,4036.5,0.02477393]
[1760123778841,2.47671884,4037.6,4036.1,2.462]
[1760123779031,2.47691954,4037.3,4036.1,2.462]
[1760123779236,0.38863979,4037.3,4036.1,2.462]
[1760123779406,2.47751787,4036.3,4036.2,0.6336]
[1760123779807,0.099,4037.8,4036.2,0.6336]
[1760123780006,2.47682641,4037.5,4036.2,0.6336]
[1760123780305,2.47743237,4036.5,4036.2,0.6336]
[1760123780544,0.099,4037.8,4036.2,0.6336]
[1760123780545,2.47719238,4036.9,4036.2,0.6336]
[1760123780732,2.47723072,4036.8,4036.2,0.6336]
[1760123780933,2.47682865,4037.5,4036.2,0.6336]
[1760123781134,2.47732311,4036.7,4036.2,0.6336]
[1760123781351,3.906,4038.3,4036.4,0.6336]
[1760123781648,2.47751653,4036.3,4036.2,1.8636]
[1760123781849,2.47751653,4036.3,4036.2,5.7696]
[1760123782065,0.099,4038.6,4036.3,0.6336]
[1760123782214,0.38861496,4037.8,4036.3,0.6336]
[1760123782416,4.52071653,4036.3,4036.2,1.23]
[1760123782741,4.49651653,4036.3,4036.2,1.23]
[1760123782926,4.49651653,4036.3,4036.2,2.46]
[1760123783453,4.39751653,4036.3,4036.2,2.46]
[1760123783666,4.78621532,4036.3,4036.2,2.46]
[1760123783827,4.39751653,4036.3,4036.2,2.48477577]
[1760123784020,4.39751653,4036.3,4036.2,2.46]
[1760123784223,4.39751653,4036.3,4036.2,3.69]
[1760123784536,1.92,4036.3,4036.2,4.3236]
[1760123784737,0.099,4037.4,4036.3,0.6336]
[1760123784920,0.099,4038.1,4036.4,0.02477455]
[1760123785118,2.47726686,4036.8,4036.4,0.02477455]
[1760123785420,2.4773324,4036.6,4036.5,4.5666]
[1760123786158,2.47727103,4036.7,4036.6,0.6336]
[1760123786544,2.47656418,4037.9,4036.6,0.6336]
[1760123786545,1.92,4037.0,4036.6,0.6336]
[1760123786756,2.4773324,4036.6,4036.5,0.002]
[1760123787057,2.47745515,4036.4,4036.3,1.23]
[1760123787938,2.47757791,4036.2,4036.1,3.691]
[1760123788339,2.47748546,4036.4,4036.1,3.691]
[1760123788340,2.47746548,4036.4,4036.1,3.691]
[1760123788537,2.47675825,4037.6,4036.1,3.691]
[1760123788538,2.47752686,4036.3,4036.1,3.691]
[1760123788738,3.188,4037.5,4036.1,3.691]
[1760123788739,1.92,4037.5,4036.1,3.691]
[1760123789060,1.92,4037.5,4036.2,0.6336]
[1760123789284,2.47751653,4036.3,4036.2,0.6336]
[1760123789467,2.47744869,4036.5,4036.2,4.6036]
[1760123789770,4.39757791,4036.2,4036.1,3.691]
[1760123789923,4.49557791,4036.2,4036.1,3.691]
[1760123790461,2.47782347,4035.8,4035.7,0.002]
[1760123791161,4.79680516,4035.8,4035.7,1.232]
[1760123791338,5.18553849,4035.8,4035.7,1.232]
[1760123792039,5.28353849,4035.8,4035.7,1.232]
[1760123792254,5.18553849,4035.8,4035.7,1.232]
[1760123792454,5.28353849,4035.8,4035.7,1.232]
[1760123792763,5.28353849,4035.8,4035.7,2.462]
[1760123793080,5.18553849,4035.8,4035.7,2.462]
[1760123793575,4.79680516,4035.8,4035.7,2.462]
[1760123793979,4.79680516,4035.8,4035.7,3.692]
[1760123794693,0.098,4037.1,4035.7,5.0943]
[1760123794860,0.098,4037.7,4035.8,0.65837823]
[1760123795048,2.47782347,4035.8,4035.7,3.692]
[1760123795571,2.47782347,4035.8,4035.7,7.712]
[1760123796083,0.098,4036.6,4035.8,0.6336]
[1760123796245,2.47782347,4035.8,4035.7,3.692]
[1760123796450,2.47782347,4035.8,4035.7,7.711]
[1760123796950,2.47782347,4035.8,4035.7,3.692]
[1760123797283,4.49582347,4035.8,4035.7,3.692]
[1760123798185,2.47775674,4036.0,4035.7,4.922]
[1760123798385,2.47782347,4035.8,4035.7,5.5556]
[1760123798584,2.47782347,4035.8,4035.7,9.5696]
[1760123798888,2.47782347,4035.8,4035.7,9.5716]
[1760123799083,2.47771133,4036.0,4035.7,9.5716]
[1760123799294,0.38872036,4036.5,4035.7,8.938]
[1760123799295,2.47781797,4035.9,4035.7,8.938]
[1760123799493,4.49582347,4035.8,4035.6,0.002]
[1760123799690,4.39788487,4035.7,4035.6,0.002]
[1760123799985,4.49588487,4035.7,4035.6,0.002]
[1760123800891,4.49588487,4035.7,4035.6,1.232]
[1760123801507,4.39788487,4035.7,4035.6,1.232]
[1760123801705,2.47788487,4035.7,4035.6,1.232]
[1760123801904,2.57588487,4035.7,4035.6,1.232]
[1760123802472,2.57588487,4035.7,4035.6,2.462]
[1760123803473,2.57588487,4035.7,4035.3,1e-08]
[1760123803474,2.47806908,4035.4,4035.3,1e-08]
[1760123803793,4.39806908,4035.4,4035.3,1e-08]
[1760123803992,4.49606908,4035.4,4035.3,1e-08]
[1760123804372,8.51106908,4035.4,4035.3,1e-08]
[1760123804573,4.49606908,4035.4,4035.3,1e-08]
[1760123804785,2.4789291,4034.0,4033.9,1e-08]
[1760123805015,2.47911346,4033.7,4033.6,1e-08]
[1760123805370,4.49811346,4033.7,4033.6,1e-08]
[1760123806011,2.019,4033.7,4033.6,1e-08]
[1760123806177,4.49811346,4033.7,4033.6,1e-08]
[1760123806509,1.92,4033.7,4033.6,1e-08]
[1760123806697,1.92,4033.7,4033.6,1.23000001]
[1760123807101,4.49811346,4033.7,4033.6,1.23000001]
[1760123807299,4.39911346,4033.7,4033.6,1.23000001]
[1760123807608,1.92,4033.7,4033.6,1.23000001]
[1760123808118,0.1009,4035.5,4033.7,0.6336]
[1760123808324,0.1009,4035.5,4033.8,2.066]
[1760123808608,0.1009,4035.5,4034.0,0.6336]
[1760123808818,2.47802762,4035.5,4034.2,0.6336]
[1760123808985,0.001,4036.3,4034.2,0.6336]
[1760123809187,0.001,4036.3,4034.1,0.6336]
[1760123809188,2.47873719,4034.4,4034.1,0.6336]
[1760123809384,2.47856327,4034.6,4034.1,0.6336]
[1760123809613,0.1009,4035.8,4034.2,0.4373]
[1760123809913,0.38878744,4035.1,4034.3,0.6336]
[1760123810128,0.38878744,4035.1,4034.3,6.8286]
[1760123810308,0.001,4036.3,4034.5,0.6336]
[1760123810513,2.4778982,4035.7,4034.7,0.6336]
[1760123810814,2.4778982,4035.7,4034.2,0.2364]
[1760123810815,2.47851738,4034.7,4034.2,0.6336]
[1760123811013,1.92,4035.4,4034.2,0.6336]
[1760123811217,4.39800768,4035.5,4034.2,0.6336]
[1760123811404,2.47856298,4034.6,4034.2,1.8636]
[1760123811600,0.1009,4035.6,4034.4,0.6336]
[1760123811601,2.47862188,4034.5,4034.4,0.6336]
[1760123811857,0.38872287,4035.0,4034.4,0.6336]
[1760123812178,2.47824658,4035.2,4034.4,0.6336]
[1760123812432,2.47802666,4035.5,4034.4,0.6336]
[1760123812580,0.1009,4035.6,4034.4,0.6336]
[1760123812775,2.0209,4035.5,4034.2,1.23]
[1760123813017,2.0209,4035.5,4034.3,4.14]
[1760123813018,1.92,4035.4,4034.3,4.14]
[1760123813217,0.1009,4035.5,4034.2,2.46]
[1760123813513,2.47902259,4033.9,4033.6,2.46000001]
[1760123813674,4.39911346,4033.7,4033.6,1e-08]
[1760123814079,2.58001346,4033.7,4033.6,1e-08]
[1760123815877,2.58001346,4033.7,4033.6,1.23000001]
[1760123816902,2.47911346,4033.7,4033.6,1.23000001]
[1760123817421,0.1009,4034.5,4033.6,2.46000001]
[1760123817585,0.1009,4034.5,4033.7,4.156]
[1760123817785,2.47897744,4034.0,4033.6,2.46000001]
[1760123817980,2.47874476,4034.3,4033.7,4.155]
[1760123818317,0.3888736,4034.4,4033.8,0.51928571]
[1760123818519,0.3888736,4034.4,4033.9,0.6336]
[1760123818886,4.157,4036.3,4034.1,0.6336]
[1760123819217,0.38885765,4035.2,4034.1,0.87]
[1760123819438,0.001,4036.3,4034.2,0.02478806]
[1760123819637,2.47763452,4036.2,4034.3,3.47980881]
[1760123819838,0.38969486,4036.3,4034.5,3.11221976]
[1760123820027,0.38969486,4036.3,4034.6,0.0247856]
[1760123820220,0.38969486,4036.3,4034.7,0.4373]
[1760123820412,0.001,4036.3,4034.8,0.02478437]
[1760123820624,0.001,4036.3,4035.0,0.6336]
[1760123820816,0.001,4036.3,4035.2,0.6336]
[1760123821019,0.001,4036.3,4035.3,0.0247813]
[1760123821235,2.47785107,4035.8,4035.5,0.6336]
[1760123821547,0.001,4036.3,4035.0,0.4373]
[1760123821717,0.001,4036.3,4035.0,0.6336]
[1760123821718,2.47825332,4035.1,4035.0,0.6336]
[1760123821916,2.47818439,4035.3,4035.0,2.9616]
[1760123822143,2.47825332,4035.1,4034.9,1.23]
[1760123822458,0.38869763,4036.0,4035.0,4.153]
[1760123822756,0.001,4036.3,4035.2,0.6336]
[1760123822918,0.001,4036.3,4035.3,6.226]
[1760123823252,0.001,4036.3,4035.4,0.65838069]
[1760123823410,0.001,4036.3,4036.2,0.87]
[1760123823610,0.001,4036.3,4036.2,5.027]
[1760123823822,0.099,4038.9,4036.3,0.6336]
[1760123824030,0.1019,4038.7,4036.3,1.0709]
[1760123824202,2.47660004,4037.8,4036.4,7.2939]
[1760123824703,1.92,4038.4,4036.5,0.4373]
[1760123824908,2.47659793,4037.8,4036.3,0.6336]
[1760123825209,2.47659793,4037.8,4035.3,1.6673]
[1760123825210,2.47799805,4037.2,4035.3,1.6673]
[1760123825443,2.47745515,4036.4,4036.3,1.23]
[1760123826227,2.47806908,4035.4,4035.3,1.23]
[1760123826709,0.001,4036.8,4035.3,1.9380813]
[1760123826938,2.47753878,4036.3,4035.5,0.6336]
[1760123827108,2.47736591,4036.6,4035.5,0.6336]
[1760123827321,0.001,4036.8,4035.5,0.6336]
[1760123827322,2.47752504,4036.3,4035.5,0.6336]
[1760123827511,0.001,4036.8,4035.6,0.02477946]
[1760123827839,0.001,4036.8,4036.7,0.87]
[1760123828044,0.001,4036.8,4036.7,7.5333]
[1760123828410,0.001,4037.2,4036.8,0.6336]
[1760123828612,2.47584929,4039.1,4036.8,1.0709]
[1760123828807,2.4763701,4038.2,4037.0,0.6336]
[1760123829120,2.86454973,4038.5,4037.2,0.6336]
[1760123829337,0.38835221,4038.5,4037.4,0.6336]
[1760123829656,2.86452721,4038.5,4037.6,0.6336]
[1760123829811,0.38835221,4038.5,4037.8,0.6336]
[1760123830146,2.47673102,4037.6,4037.5,2.066]
[1760123830348,0.38835221,4038.5,4036.7,1.23]
[1760123830349,2.47684153,4037.4,4036.7,1.23]
[1760123830524,2.4771483,4036.9,4036.8,0.6336]
[1760123830725,2.4771483,4036.9,4036.8,2.2556]
[1760123830927,4.39720967,4036.8,4036.7,5.384]
[1760123831137,4.52040967,4036.8,4036.7,5.384]
[1760123831356,1.92,4036.7,4035.3,3.69]
[1760123831518,0.1232,4036.2,4035.4,6.6593]
[1760123831850,0.1232,4036.2,4035.3,4.182]
[1760123831851,2.47708694,4037.0,4036.2,0.6336]
[1760123832063,2.47702558,4037.1,4036.4,0.6336]
[1760123832247,0.3885296,4037.1,4036.4,0.6336]
[1760123832449,0.3885296,4037.1,4036.9,0.6336]
[1760123832617,2.47682686,4037.5,4037.0,4.18377086]
[1760123832818,1.92,4038.4,4037.0,4.18377086]
[1760123832819,2.86530082,4037.6,4037.0,4.18377086]
[1760123833061,0.38857537,4037.6,4037.0,4.18377086]
[1760123833281,1.29784218,4039.4,4037.0,4.18377086]
[1760123833282,2.47446169,4041.3,4037.1,0.6336]
[1760123833564,0.1038,4039.8,4037.3,0.6336]
[1760123833861,2.47621177,4040.1,4037.5,0.6336]
[1760123833862,0.001,4039.2,4037.5,0.6336]
[1760123834014,0.001,4039.2,4037.7,0.6336]
[1760123834217,0.001,4039.2,4037.9,0.6336]
[1760123834652,0.001,4039.2,4038.1,0.6336]
[1760123835044,0.001,4039.2,4038.3,0.6336]
[1760123835247,0.001,4039.2,4038.4,0.02476228]
[1760123835448,0.001,4039.2,4038.5,0.6336]
[1760123835760,0.001,4039.2,4038.7,0.6336]
[1760123836130,0.001,4039.2,4038.9,0.6336]
[1760123836547,0.001,4039.2,4039.1,0.6336]
[1760123837031,0.001,4039.2,4039.1,0.4748]
[1760123837235,0.001,4039.2,4039.1,7.3254]
[1760123838570,0.001,4039.2,4039.1,8.5554]
[1760123838872,0.001,4039.2,4039.1,10.05644]
[1760123839864,0.001,4039.2,4039.1,11.28644]
[1760123840061,0.001,4039.2,4039.1,5.06944]
[1760123840264,0.001,4039.2,4039.1,2.46]
[1760123840480,0.001,4039.2,4039.1,5.858]
[1760123840784,0.001,4039.2,4039.1,2.46]
[1760123840948,2.47673776,4039.2,4039.1,6.603]
[1760123841275,0.001,4039.2,4039.1,6.603]
[1760123841474,0.001,4039.2,4039.1,8.3078]
[1760123841777,0.001,4039.2,4039.1,8.9414]
[1760123842081,2.47673776,4039.2,4039.1,3.69]
[1760123842262,2.47673776,4039.2,4039.1,7.828]
[1760123842881,2.47673776,4039.2,4039.1,9.058]
[1760123843086,4.50053776,4039.2,4038.1,1.23]
[1760123843288,1.92,4039.0,4038.2,2.03]
[1760123843450,0.001,4039.2,4038.2,2.03]
[1760123843797,0.001,4039.2,4038.1,1.23]
[1760123843798,2.47617669,4038.5,4038.3,6.201]
[1760123843964,0.3884535,4038.9,4038.3,6.6758]
[1760123844142,2.47609753,4038.7,4038.4,0.6336]
[1760123844342,0.3884535,4038.9,4038.4,0.6336]
[1760123844755,2.47607415,4038.7,4038.4,0.6336]
[1760123844942,0.3884535,4038.9,4038.3,1.23]
[1760123844943,0.3884535,4038.9,4038.6,0.6336]
[1760123845138,4.39600131,4038.8,4038.6,0.6336]
[1760123845375,1.92,4038.8,4038.6,0.6336]
[1760123845740,1.92,4038.8,4038.6,1.8636]
[1760123846154,0.001,4039.2,4038.8,0.6336]
[1760123846340,0.001,4039.2,4039.0,0.6336]
[1760123846878,0.1232,4039.0,4038.7,0.6336]
[1760123847042,0.001,4039.2,4038.8,3.795]
[1760123847578,0.001,4039.2,4038.9,0.65835921]
[1760123847875,0.001,4039.2,4038.7,0.6336]
[1760123847876,0.1232,4038.8,4038.7,0.6336]
[1760123848074,0.1232,4038.8,4038.7,4.7696]
[1760123848376,0.1232,4038.8,4038.7,5.9996]
[1760123848786,0.001,4039.2,4038.7,6.472]
[1760123848968,0.001,4039.2,4038.9,0.6336]
[1760123849278,0.001,4039.7,4039.0,0.0247586]
[1760123849515,0.001,4039.7,4039.1,0.6336]
[1760123849778,0.001,4039.7,4039.0,1.23]
[1760123850085,0.001,4039.7,4039.1,7.33075799]
[1760123850241,0.001,4039.7,4039.1,8.1620758]
[1760123850442,0.001,4039.7,4039.2,0.49715737]
[1760123850647,0.001,4039.7,4039.2,0.4724]
[1760123850862,0.001,4039.7,4039.3,0.4724]
[1760123851275,0.001,4039.7,4039.5,0.6336]
[1760123851660,0.001,4039.7,4039.1,1.23]
[1760123851661,0.001,4039.7,4039.2,0.6336]
[1760123851856,0.001,4039.7,4039.4,0.6336]
[1760123852165,2.47647345,4039.7,4039.4,0.6336]
[1760123852371,0.001,4039.7,4039.5,4.7636]
[1760123852555,0.001,4039.7,4039.6,4.7626]
[1760123852756,2.47643134,4039.7,4039.6,4.7626]
[1760123853358,2.4755539,4039.5,4039.4,1.23]
[1760123853580,0.38932526,4039.7,4039.4,5.357]
[1760123853778,2.4755539,4039.5,4039.4,2.46]
[1760123854293,2.1002339,4039.5,4039.4,2.46]
[1760123854584,2.47590281,4039.0,4038.3,1.23]
[1760123854894,2.47598296,4038.8,4038.7,5.356]
[1760123855200,2.47598296,4038.8,4038.7,6.586]
[1760123856089,2.47598296,4038.8,4038.7,2.46]
[1760123856290,2.47598296,4038.8,4038.7,6.582]
[1760123856606,4.39604427,4038.7,4038.5,4.121]
[1760123857603,0.001,4039.5,4038.6,2.9324]
[1760123857763,2.47591346,4039.0,4038.7,0.6336]
[1760123857960,2.47604427,4038.7,4038.6,3.69]
[1760123858160,2.47604427,4038.7,4038.6,7.812]
[1760123858362,2.47573776,4039.2,4038.6,7.812]
[1760123858562,0.38837131,4039.3,4038.6,7.812]
[1760123858563,1.92,4039.1,4038.6,7.812]
[1760123858765,0.38837131,4039.3,4038.7,0.65836044]
[1760123858963,2.47593232,4038.9,4038.7,0.6336]
[1760123859161,2.47593232,4038.9,4038.8,4.124]
[1760123859393,0.1232,4038.8,4038.7,0.6336]
[1760123859596,0.38837131,4039.3,4038.7,5.54312044]
[1760123859798,0.38837131,4039.3,4038.9,0.6336]
[1760123859984,0.38837131,4039.3,4039.1,0.6336]
[1760123860184,0.001,4039.5,4039.1,0.6336]
[1760123860374,0.001,4039.5,4039.3,0.6336]
[1760123860580,0.001,4039.5,4039.4,4.95431615]
[1760123860773,0.001,4039.5,4039.4,4.92956]
[1760123860975,0.001,4039.5,4039.4,7.87757519]
[1760123861176,0.001,4039.5,4039.4,1.27996]
[1760123861802,2.4765539,4039.5,4039.1,1.23]
[1760123862016,2.4765539,4039.5,4039.2,4.122]
[1760123862017,0.001,4039.5,4039.2,4.122]
[1760123862688,0.001,4039.5,4039.3,0.6336]
[1760123863266,0.001,4039.5,4039.4,0.4724]
[1760123863491,0.001,4039.5,4039.4,4.7516]
[1760123864003,0.001,4039.5,4039.3,1.23]
[1760123864203,0.1232,4039.4,4039.3,1.23]
[1760123864370,0.1232,4039.4,4039.3,5.346]
[1760123864563,0.1232,4039.4,4039.3,5.9796]
[1760123864766,0.1232,4039.4,4039.3,7.682]
[1760123864966,0.001,4039.5,4039.3,4.7866]
[1760123865200,0.001,4039.5,4039.4,6.178]
[1760123865506,0.001,4039.5,4039.4,6.6504]
[1760123866095,0.001,4039.5,4039.4,7.8804]
[1760123866294,0.001,4039.5,4039.4,1.7024]
[1760123866497,0.001,4039.5,4039.4,7.8764]
[1760123866681,0.001,4039.5,4039.4,9.853]
[1760123867172,0.001,4039.5,4039.4,9.851]
[1760123867713,0.001,4039.5,4039.4,11.081]
[1760123868723,0.001,4039.5,4039.4,13.55661519]
[1760123868930,0.001,4039.5,4039.4,14.78661519]
[1760123869234,0.001,4039.7,4039.6,0.6336]
[1760123869395,0.001,4039.7,4039.6,1.93305911]
[1760123869593,0.001,4039.7,4039.6,2.38825911]
[1760123869931,0.001,4039.7,4039.6,8.58101403]
[1760123870136,0.001,4039.7,4039.6,9.78625911]
[1760123870636,0.001,4039.7,4039.6,12.26175173]
[1760123871127,0.001,4039.7,4039.6,16.23625911]
[1760123871744,0.001,4039.7,4039.6,4.84825911]
[1760123872076,0.001,4039.7,4039.6,2.9152]
[1760123872200,0.001,4039.7,4039.6,2.46]
[1760123872534,0.001,4039.7,4039.6,6.561]
[1760123872895,0.001,4039.7,4039.6,7.791]
[1760123873099,0.001,4039.7,4039.6,8.2462]
[1760123873328,0.001,4039.7,4039.6,8.8798]
[1760123873725,0.001,4039.7,4039.6,10.58918]
[1760123874303,0.001,4039.7,4039.6,11.81518]
[1760123874500,0.001,4039.7,4039.6,13.87918]
[1760123875721,0.001,4039.7,4039.6,15.10918]
[1760123876536,0.001,4039.7,4039.6,17.58467262]
[1760123876944,0.001,4039.7,4039.6,24.02467262]
[1760123877111,0.001,4039.7,4039.6,25.25467262]
[1760123877317,0.001,4039.7,4039.6,22.77918]
[1760123877727,0.001,4039.7,4039.6,8.4688]
[1760123877932,0.001,4039.7,4039.6,13.9872]
[1760123878130,0.001,4039.7,4039.6,7.38]
[1760123878626,0.001,4039.7,4039.6,8.61]
[1760123878803,2.47643134,4039.7,4039.6,8.61]
[1760123879009,2.47643134,4039.7,4039.6,12.698]
[1760123879731,0.001,4039.7,4039.6,13.3316]
[1760123879913,0.001,4039.7,4039.6,15.0168]
[1760123880815,0.001,4039.7,4039.6,17.13348]
[1760123881264,0.001,4039.7,4039.6,14.27548]
[1760123881753,0.001,4039.7,4039.6,20.42548]
[1760123882521,0.001,4039.7,4039.6,22.90097262]
[1760123882859,0.001,4039.7,4039.6,24.13097262]
[1760123883060,0.001,4039.7,4039.6,21.65548]
[1760123884044,0.001,4039.7,4039.6,22.88548]
[1760123884823,0.001,4039.7,4039.6,16.10188]
[1760123885226,7.131,4039.7,4039.6,13.9852]
[1760123885453,7.131,4039.7,4039.6,18.84]
[1760123885784,7.131,4039.7,4039.6,14.76]
[1760123886062,11.52643134,4039.7,4039.6,18.839]
[1760123886360,9.051,4039.7,4039.6,18.839]
[1760123886532,9.051,4039.7,4039.6,19.4726]
[1760123886740,7.131,4039.7,4039.6,20.7026]
[1760123887973,11.52643134,4039.7,4039.6,15.99]
[1760123888277,4.49643134,4039.7,4039.6,17.22]
[1760123888433,1.921,4039.7,4039.6,21.296]
[1760123888636,1.921,4039.7,4039.6,17.22]
[1760123888637,4.39643134,4039.7,4039.6,17.22]
[1760123888970,4.49733134,4039.7,4039.6,21.295]
[1760123889337,4.49733134,4039.7,4039.6,17.22]
[1760123889537,4.39643134,4039.7,4039.6,18.45]
[1760123889749,4.39643134,4039.7,4039.6,22.524]
[1760123889948,1.921,4039.7,4039.6,22.524]
[1760123890379,1.921,4039.7,4039.6,23.1576]
[1760123890857,1.921,4039.7,4039.6,24.3876]
[1760123891038,4.49913134,4039.7,4039.6,11.47519586]
[1760123891271,2.4755539,4039.5,4039.1,1e-08]
[1760123891475,2.47573776,4039.2,4039.1,1e-08]
[1760123891839,4.49843776,4039.2,4039.1,1e-08]
[1760123892038,4.88693277,4039.2,4039.1,1e-08]
[1760123892238,4.88693277,4039.2,4039.1,5.31100001]
[1760123892678,2.41119501,4039.2,4038.1,1.232]
[1760123892842,2.4762282,4038.4,4038.1,1.232]
[1760123893041,4.4989282,4038.4,4038.1,1.232]
[1760123893236,2.47635084,4038.2,4038.1,1.232]
[1760123893450,2.47635084,4038.2,4038.1,4.639]
[1760123894046,0.38856099,4038.4,4038.1,4.639]
[1760123894249,1.92,4038.3,4038.1,4.639]
[1760123895388,1.92,4038.3,4038.1,2.462]
[1760123895389,2.57905084,4038.2,4038.1,2.462]
[1760123895748,2.47659616,4037.8,4037.7,0.002]
[1760123896199,2.47659616,4037.8,4037.5,0.002]
[1760123896200,2.47671884,4037.6,4037.5,0.002]
[1760123896354,2.47690288,4037.3,4037.2,4.075]
[1760123896558,2.47702558,4037.1,4037.0,4.079]
[1760123896899,4.49862558,4037.1,4037.0,0.002]
[1760123898086,1.92,4037.1,4037.0,1.232]
[1760123898954,4.39702558,4037.1,4037.0,1.232]
[1760123899184,4.49862558,4037.1,4037.0,1.232]
[1760123899381,4.49862558,4037.1,4037.0,2.462]
[1760123900692,4.49862558,4037.1,4037.0,6.533]
[1760123900903,1.92,4037.1,4037.0,7.763]
[1760123901094,2.47702558,4037.1,4037.0,7.763]
[1760123901279,2.47702558,4037.1,4037.0,3.692]
[1760123901280,2.57862558,4037.1,4037.0,3.692]
[1760123901663,4.49862558,4037.1,4037.0,3.692]
[1760123902202,4.49862558,4037.1,4037.0,4.922]
[1760123903481,4.49862558,4037.1,4037.0,6.152]
[1760123905130,4.49862558,4037.1,4037.0,7.382]
[1760123905430,4.49862558,4037.1,4037.0,11.448]
[1760123906531,4.49862558,4037.1,4037.0,8.612]
[1760123907717,4.49862558,4037.1,4037.0,9.842]
[1760123908631,1.92,4037.1,4037.0,9.842]
[1760123908791,2.0216,4037.1,4037.0,9.842]
[1760123908993,2.0216,4037.1,4037.0,11.072]
[1760123909421,4.39702558,4037.1,4037.0,11.072]
[1760123909622,1.92,4037.1,4037.0,11.072]
[1760123909854,4.49862558,4037.1,4037.0,11.072]
[1760123910048,4.49862558,4037.1,4037.0,15.123]
[1760123910519,4.49862558,4037.1,4037.0,16.353]
[1760123911123,4.49862558,4037.1,4037.0,16.351]
[1760123911858,4.49862558,4037.1,4037.0,17.581]
[1760123912243,4.49862558,4037.1,4037.0,17.578]
[1760123912760,4.49862558,4037.1,4037.0,13.532]
[1760123912964,4.49862558,4037.1,4037.0,17.578]
[1760123913260,4.39702558,4037.1,4037.0,18.808]
[1760123914345,4.39702558,4037.1,4037.0,20.038]
[1760123914964,4.39702558,4037.1,4037.0,20.034]
[1760123914965,4.49862558,4037.1,4037.0,20.034]
[1760123915548,4.39702558,4037.1,4037.0,20.034]
[1760123915750,1.92,4037.1,4037.0,20.031]
[1760123915964,0.001,4037.3,4037.0,17.222]
[1760123916261,4.39702558,4037.1,4037.0,17.222]
[1760123916459,2.57862558,4037.1,4037.0,17.222]
[1760123916759,4.49862558,4037.1,4037.0,17.222]
[1760123917061,4.49862558,4037.1,4037.0,21.259]
[1760123917275,4.49862558,4037.1,4037.0,22.489]
[1760123917485,4.49862558,4037.1,4037.0,18.452]
[1760123918056,2.4773324,4036.6,4036.5,0.002]
[1760123918353,2.4773324,4036.6,4034.2,1.6772]
[1760123918354,2.47770069,4036.0,4035.2,2.065]
[1760123918552,4.49930069,4036.0,4035.9,18.71777075]
[1760123918878,4.88799521,4036.0,4035.9,18.71777075]
[1760123919043,4.88799521,4036.0,4035.9,14.68277075]
[1760123919244,4.49930069,4036.0,4035.9,18.71677075]
[1760123919469,4.79905789,4036.0,4035.9,18.71677075]
[1760123919869,4.79905789,4036.0,4035.9,19.94677075]
[1760123920344,2.3213572,4036.0,4035.9,19.94677075]
[1760123920545,2.2197572,4036.0,4035.9,19.94677075]
[1760123920766,2.2197572,4036.0,4035.9,19.94377075]
[1760123921376,4.69745789,4036.0,4035.9,19.13714782]
[1760123921550,2.2197572,4036.0,4035.9,21.17177075]
[1760123921751,2.2197572,4036.0,4035.9,17.14277075]
[1760123921953,2.2197572,4036.0,4035.9,21.17177075]
[1760123922563,0.2997572,4036.0,4035.9,21.16977075]
[1760123922760,0.38875385,4036.3,4035.9,24.72334783]
[1760123923082,0.69939167,4036.3,4036.0,0.6336]
[1760123923245,0.69939167,4036.3,4036.1,4.05077639]
[1760123923246,0.31063782,4036.3,4036.1,4.05077639]
[1760123923449,0.38870553,4036.6,4036.1,4.026]
[1760123923650,0.30881644,4037.1,4036.2,0.65837577]
[1760123923981,2.477905,4037.3,4036.2,0.65837577]
[1760123923982,2.47708836,4037.0,4036.3,4.53815758]